[Event "FIDE WSTC Open 50 2025"]
[Site "Prague"]
[Date "2025.02.18"]
[Round "2.24"]
[White "Motuz, Karol"]
[Black "Hulme, William"]
[Result "1-0"]
[Annotator "ChessBase"]
[ECO "C77"]
[WhiteElo "2293"]
[BlackElo "1909"]
[PlyCount "81"]
[EventDate "2025.02.17"]
[EventType "team-tourn"]
[EventCountry "CZE"]
[SourceTitle "playchess.com"]
[Source "ChessBase"]
[SourceQuality "1"]
[TimeControl "40/5400+30:1800+30"]

1. e4 {[%emt 0:00:01]} e5 {[%emt 0:00:09]} 2. Nf3 {[%emt 0:00:07]} Nc6 {[%emt 0:00:05]} 3. Bb5 {[%emt 0:00:24]} a6 {[%emt 0:00:09]} 4. Ba4 {[%emt 0:00:11]} Nf6 {[%emt 0:00:43]} 5. d3 {[%emt 0:00:30]} Bc5 {[%emt 0:00:48]} 6. c3 {[%emt 0:00:39]} d6 {[%emt 0:00:50]} 7. O-O {[%emt 0:00:49]} h6 {[%emt 0:02:34]} 8. Re1 {[%emt 0:01:57]} b5 {[%emt 0:02:13]} 9. Bc2 {[%emt 0:02:06]} O-O {[%emt 0:02:07]} 10. a4 {[%emt 0:03:40]} Rb8 {[%emt 0:04:41]} 11. axb5 {[%emt 0:02:09]} axb5 {[%emt 0:00:12]} 12. h3 {[%emt 0:02:06]} Re8 {[%emt 0:03:07]} 13. Nbd2 {[%emt 0:13:14]} d5 {[%emt 0:07:52]} 14. exd5 {[%emt 0:13:03]} Qxd5 {[%emt 0:04:37]} 15. Qe2 {[%emt 0:04:47]} Bf5 {[%emt 0:07:58]} 16. Ne4 {[%emt 0:01:21]} Be7 {[%emt 0:05:54]} 17. Nh4 {[%emt 0:08:53]} Bh7 {[%emt 0:02:35]} 18. Qf3 {[%emt 0:04:50]} Qd7 {[%emt 0:11:37]} 19. Ng3 {[%emt 0:03:28]} Nd5 {[%emt 0:13:47]} 20. Nhf5 {[%emt 0:02:11]} Rbd8 {[%emt 0:10:46]} 21. Bxh6 {[%emt 0:11:10]} Bf8 {[%emt 0:04:10]} 22. Bg5 {[%emt 0:04:32]} f6 {[%emt 0:01:33]} 23. Bd2 {[%emt 0:00:36]} Nce7 {[%emt 0:00:57]} 24. Nxe7+ {[%emt 0:01:01]} Nxe7 {[%emt 0:01:29]} 25. Ne4 {[%emt 0:03:25]} Nd5 {[%emt 0:01:12]} 26. Rad1 {[%emt 0:02:14]} Bf5 {[%emt 0:02:14]} 27. d4 {[%emt 0:03:32]} exd4 {[%emt 0:02:41]} 28. Nxf6+ {[%emt 0:00:45]} Nxf6 {[%emt 0:00:04]} 29. Bxf5 {[%emt 0:00:25]} Qd5 {[%emt 0:03:02]} 30. Qxd5+ {[%emt 0:02:03]} Nxd5 {[%emt 0:00:05]} 31. cxd4 {[%emt 0:01:19]} Bb4 {[%emt 0:01:05]} 32. Be6+ {[%emt 0:05:52]} Kf8 {[%emt 0:00:14]} 33. Bxd5 {[%emt 0:01:44]} Rxe1+ {[%emt 0:00:03]} 34. Bxe1 {[%emt 0:00:22]} Bxe1 {[%emt 0:00:05]} 35. Rxe1 {[%emt 0:00:24]} Rxd5 {[%emt 0:00:04]} 36. Re5 {[%emt 0:00:58]} Rxd4 {[%emt 0:00:32]} 37. Rxb5 {[%emt 0:00:06]} Rd1+ {[%emt 0:00:19]} 38. Kh2 {[%emt 0:00:08]} Ke7 {[%emt 0:01:28]} 39. g4 {[%emt 0:00:50]} Rd2 {[%emt 0:01:48]} 40. Kg3 {[%emt 0:00:27]} Rc2 {[%emt 0:00:40]} 41. h4 {[%emt 0:31:25]} 1-0

[Event "FIDE WSTC Open 50 2025"]
[Site "Prague"]
[Date "2025.02.18"]
[Round "2.25"]
[White "Haba, Petr"]
[Black "Titscher, Libor"]
[Result "0-1"]
[Annotator "ChessBase"]
[ECO "B30"]
[WhiteElo "2442"]
[BlackElo "2147"]
[PlyCount "34"]
[EventDate "2025.02.17"]
[EventType "team-tourn"]
[EventCountry "CZE"]
[SourceTitle "playchess.com"]
[Source "ChessBase"]
[SourceQuality "1"]
[TimeControl "40/5400+30:1800+30"]

1. e4 {[%emt 0:00:14]} c5 2. Nf3 {[%emt 0:00:16]} Nc6 {[%emt 0:00:16]} 3. c3 {[%emt 0:00:32]} e5 {[%emt 0:00:16]} 4. Bc4 {[%emt 0:00:21]} Qc7 {[%emt 0:00:08]} 5. O-O {[%emt 0:00:37]} Be7 {[%emt 0:00:07]} 6. Na3 {[%emt 0:02:50]} Nf6 {[%emt 0:02:23]} 7. d4 {[%emt 0:05:32]} cxd4 {[%emt 0:12:34]} 8. cxd4 {[%emt 0:11:56]} Bxa3 {[%emt 0:04:41]} 9. bxa3 {[%emt 0:00:25]} Nxd4 {[%emt 0:00:33]} 10. Nxe5 {[%emt 0:28:15]} Qxe5 {[%emt 0:09:36]} 11. Bb2 {[%emt 0:01:09]} Nf3+ {[%emt 0:01:05]} 12. Qxf3 {[%emt 0:00:05]} Qxb2 {[%emt 0:00:10]} 13. e5 {[%emt 0:04:32]} d5 {[%emt 0:15:56]} 14. exf6 {[%emt 0:06:51]} dxc4 {[%emt 0:06:38]} 15. Rae1+ {[%emt 0:00:27]} Be6 {[%emt 0:02:04]} 16. fxg7 {[%emt 0:00:21]} Qxg7 {[%emt 0:02:10]} 17. Qxb7 {[%emt 0:00:16]} O-O {[%emt 0:01:14]} 0-1

[Event "FIDE WSTC Open 50 2025"]
[Site "Prague"]
[Date "2025.02.18"]
[Round "2.26"]
[White "Schulenburg, Bernd"]
[Black "Jirovsky, Milos"]
[Result "1-0"]
[Annotator "ChessBase"]
[ECO "B31"]
[WhiteElo "2144"]
[BlackElo "2410"]
[PlyCount "59"]
[EventDate "2025.02.17"]
[EventType "team-tourn"]
[EventCountry "CZE"]
[SourceTitle "playchess.com"]
[Source "ChessBase"]
[SourceQuality "1"]
[TimeControl "40/5400+30:1800+30"]

1. e4 {[%emt 0:00:06]} c5 {[%emt 0:00:06]} 2. Nf3 {[%emt 0:00:07]} Nc6 {[%emt 0:00:08]} 3. Bb5 {[%emt 0:00:28]} g6 {[%emt 0:00:18]} 4. O-O {[%emt 0:00:40]} Bg7 {[%emt 0:00:17]} 5. Re1 {[%emt 0:01:05]} Nf6 {[%emt 0:01:09]} 6. h3 {[%emt 0:01:43]} O-O {[%emt 0:01:12]} 7. c3 {[%emt 0:01:26]} Qb6 {[%emt 0:08:03]} 8. Na3 {[%emt 0:02:44]} a6 {[%emt 0:03:21]} 9. Bxc6 {[%emt 0:01:41]} Qxc6 {[%emt 0:01:21]} 10. d4 {[%emt 0:00:58]} cxd4 {[%emt 0:03:30]} 11. cxd4 {[%emt 0:00:21]} d5 {[%emt 0:00:53]} 12. e5 {[%emt 0:04:21]} Ne4 {[%emt 0:00:44]} 13. Ng5 {[%emt 0:07:01]} b5 {[%emt 0:05:56]} 14. Nxe4 {[%emt 0:15:30]} dxe4 {[%emt 0:00:23]} 15. d5 {[%emt 0:01:28]} Qc5 {[%emt 0:00:25]} 16. Be3 {[%emt 0:03:30]} Qb4 {[%emt 0:00:37]} 17. Nc2 {[%emt 0:00:19]} Qc4 {[%emt 0:03:05]} 18. Bf4 {[%emt 0:03:11]} Bb7 {[%emt 0:02:16]} 19. Ne3 {[%emt 0:00:32]} Qb4 {[%emt 0:00:42]} 20. Re2 {[%emt 0:01:30]} Rac8 {[%emt 0:06:25]} 21. a3 {[%emt 0:02:26]} Qa5 {[%emt 0:02:37]} 22. Rc1 {[%emt 0:04:46]} f6 {[%emt 0:08:15]} 23. Rxc8 {[%emt 0:07:39]} Rxc8 {[%emt 0:00:24]} 24. d6 {[%emt 0:10:55]} fxe5 {[%emt 0:10:27]} 25. Nd5 {[%emt 0:00:38]} Qd8 {[%emt 0:16:54]} 26. Nxe7+ {[%emt 0:01:17]} Kh8 {[%emt 0:02:47]} 27. Bg5 {[%emt 0:01:10]} Qd7 {[%emt 0:01:24]} 28. Nxc8 {[%emt 0:00:06]} Bxc8 {[%emt 0:00:36]} 29. Rc2 {[%emt 0:00:29]} Qe8 {[%emt 0:01:56]} 30. Rxc8 {[%emt 0:00:46]} 1-0

[Event "FIDE WSTC Open 50 2025"]
[Site "Prague"]
[Date "2025.02.18"]
[Round "2.27"]
[White "Zvara, Petr"]
[Black "Kuna, Ralf-Michael"]
[Result "1-0"]
[Annotator "ChessBase"]
[ECO "C71"]
[WhiteElo "2330"]
[BlackElo "2072"]
[PlyCount "75"]
[EventDate "2025.02.17"]
[EventType "team-tourn"]
[EventCountry "CZE"]
[SourceTitle "playchess.com"]
[Source "ChessBase"]
[SourceQuality "1"]
[TimeControl "40/5400+30:1800+30"]

1. e4 {[%emt 0:00:03]} e5 {[%emt 0:00:36]} 2. Nf3 {[%emt 0:00:08]} Nc6 {[%emt 0:00:37]} 3. Bb5 {[%emt 0:00:06]} a6 {[%emt 0:00:28]} 4. Ba4 {[%emt 0:00:07]} d6 {[%emt 0:03:39]} 5. d4 {[%emt 0:11:08]} exd4 {[%emt 0:14:45]} 6. Nxd4 {[%emt 0:06:17]} Bd7 {[%emt 0:00:24]} 7. Bxc6 {[%emt 0:00:05]} bxc6 {[%emt 0:00:26]} 8. O-O {[%emt 0:00:37]} c5 {[%emt 0:00:49]} 9. Ne2 {[%emt 0:05:02]} Nf6 {[%emt 0:04:18]} 10. Nbc3 {[%emt 0:00:05]} Be7 {[%emt 0:00:06]} 11. Ng3 {[%emt 0:02:55]} O-O {[%emt 0:00:52]} 12. f4 {[%emt 0:08:03]} Bc6 {[%emt 0:07:33]} 13. Qd3 {[%emt 0:09:39]} Nd7 {[%emt 0:03:16]} 14. b3 {[%emt 0:00:43]} Bf6 {[%emt 0:00:56]} 15. a4 {[%emt 0:03:21]} Re8 {[%emt 0:06:42]} 16. Be3 {[%emt 0:16:14]} Bxc3 {[%emt 0:01:40]} 17. Qxc3 {[%emt 0:00:51]} Bxe4 {[%emt 0:00:07]} 18. Rae1 {[%emt 0:00:15]} f5 {[%emt 0:05:33]} 19. Bd2 {[%emt 0:01:51]} Qf6 {[%emt 0:02:32]} 20. Nxe4 {[%emt 0:00:26]} fxe4 {[%emt 0:00:09]} 21. Qc4+ {[%emt 0:01:03]} Qe6 {[%emt 0:00:15]} 22. Rxe4 {[%emt 0:00:46]} Qxc4 {[%emt 0:02:06]} 23. Rxc4 {[%emt 0:00:15]} Re2 {[%emt 0:01:38]} 24. Rf2 {[%emt 0:02:01]} Rae8 {[%emt 0:00:41]} 25. Kf1 {[%emt 0:05:09]} Rxf2+ {[%emt 0:01:12]} 26. Kxf2 {[%emt 0:00:04]} Nf6 {[%emt 0:00:26]} 27. Kf3 {[%emt 0:01:54]} Kf7 {[%emt 0:23:08]} 28. g4 {[%emt 0:05:44]} c6 {[%emt 0:04:32]} 29. Ba5 {[%emt 0:03:48]} Nd7 {[%emt 0:02:56]} 30. Re4 {[%emt 0:02:12]} Rxe4 {[%emt 0:00:59]} 31. Kxe4 {[%emt 0:00:05]} Nf6+ {[%emt 0:00:08]} 32. Kf3 {[%emt 0:00:48]} g6 {[%emt 0:03:11]} 33. f5 {[%emt 0:07:53]} d5 {[%emt 0:04:49]} 34. Kf4 {[%emt 0:00:14]} Ne4 {[%emt 0:03:30]} 35. Ke5 {[%emt 0:02:32]} g5 {[%emt 0:01:12]} 36. h3 {[%emt 0:02:36]} h6 {[%emt 0:00:28]} 37. Bb6 {[%emt 0:02:20]} Ke7 {[%emt 0:00:25]} 38. c4 {[%emt 0:00:32]} 1-0

[Event "FIDE WSTC Open 50 2025"]
[Site "Prague"]
[Date "2025.02.18"]
[Round "2.28"]
[White "Haentsch, Ralf"]
[Black "Konopka, Michal"]
[Result "1/2-1/2"]
[Annotator "ChessBase"]
[ECO "B09"]
[WhiteElo "2087"]
[BlackElo "2326"]
[PlyCount "112"]
[EventDate "2025.02.17"]
[EventType "team-tourn"]
[EventCountry "CZE"]
[SourceTitle "playchess.com"]
[Source "ChessBase"]
[SourceQuality "1"]
[TimeControl "40/5400+30:1800+30"]

1. e4 {[%emt 0:00:03]} d6 {[%emt 0:00:45]} 2. d4 {[%emt 0:00:16]} Nf6 {[%emt 0:00:20]} 3. Nc3 {[%emt 0:00:02]} g6 {[%emt 0:00:11]} 4. f4 {[%emt 0:00:53]} Bg7 {[%emt 0:03:10]} 5. Nf3 {[%emt 0:00:22]} O-O {[%emt 0:01:22]} 6. Be2 {[%emt 0:01:55]} c5 {[%emt 0:00:29]} 7. dxc5 {[%emt 0:01:40]} Qa5 {[%emt 0:00:56]} 8. Qd3 {[%emt 0:17:48]} Qxc5 {[%emt 0:12:02]} 9. Be3 {[%emt 0:01:48]} Qa5 {[%emt 0:01:31]} 10. O-O-O {[%emt 0:06:06]} Nc6 {[%emt 0:04:50]} 11. Qb5 {[%emt 0:08:19]} Be6 {[%emt 0:19:51]} 12. Qxa5 {[%emt 0:10:58]} Nxa5 {[%emt 0:00:07]} 13. Nd4 {[%emt 0:08:26]} Bc4 {[%emt 0:03:56]} 14. Bf3 {[%emt 0:02:42]} Ba6 {[%emt 0:17:20]} 15. Ndb5 {[%emt 0:06:52]} Nc4 {[%emt 0:01:13]} 16. Bd4 {[%emt 0:00:41]} Bh6 {[%emt 0:06:25]} 17. Nc7 {[%emt 0:07:15]} Bxf4+ {[%emt 0:12:50]} 18. Kb1 {[%emt 0:00:03]} Be5 {[%emt 0:00:18]} 19. Nxa8 {[%emt 0:04:47]} Rxa8 {[%emt 0:00:07]} 20. Bxe5 {[%emt 0:02:18]} Nxe5 {[%emt 0:00:07]} 21. Rhe1 {[%emt 0:00:51]} Bc4 {[%emt 0:01:22]} 22. b3 {[%emt 0:03:00]} Be6 {[%emt 0:01:29]} 23. Nb5 {[%emt 0:01:35]} Bd7 {[%emt 0:01:36]} 24. Nc7 {[%emt 0:00:50]} Rc8 {[%emt 0:00:31]} 25. Nd5 {[%emt 0:00:07]} Nxd5 {[%emt 0:00:23]} 26. Rxd5 {[%emt 0:00:14]} Kg7 {[%emt 0:02:27]} 27. Kb2 {[%emt 0:02:22]} g5 {[%emt 0:00:15]} 28. c4 {[%emt 0:02:07]} Be6 {[%emt 0:02:14]} 29. Rd2 {[%emt 0:01:56]} Kg6 {[%emt 0:01:14]} 30. Bd1 {[%emt 0:01:57]} h5 {[%emt 0:00:38]} 31. Bc2 {[%emt 0:00:31]} g4 {[%emt 0:01:01]} 32. Rf2 {[%emt 0:02:15]} f6 {[%emt 0:00:24]} 33. Re3 {[%emt 0:01:08]} Bxc4 {[%emt 0:01:15]} 34. Rc3 {[%emt 0:01:09]} Be6 {[%emt 0:00:08]} 35. Rxc8 {[%emt 0:00:07]} Bxc8 {[%emt 0:00:05]} 36. Kc3 {[%emt 0:00:53]} h4 {[%emt 0:00:47]} 37. g3 {[%emt 0:01:36]} Kg5 {[%emt 0:01:39]} 38. Kd4 {[%emt 0:00:53]} Be6 {[%emt 0:01:17]} 39. Ke3 {[%emt 0:00:46]} Bd7 {[%emt 0:00:31]} 40. Kd4 {[%emt 0:00:44]} Be6 {[%emt 0:00:40]} 41. Ke3 {[%emt 0:30:52]} h3 {[%emt 0:06:19]} 42. Bd1 Bd7 {[%emt 0:00:35]} 43. Rc2 {[%emt 0:00:00]} Bc6 {[%emt 0:04:01]} 44. Rf2 {[%emt 0:00:00]} e6 {[%emt 0:01:49]} 45. Rd2 {[%emt 0:00:00]} d5 {[%emt 0:00:41]} 46. exd5 {[%emt 0:00:00]} Bxd5 {[%emt 0:00:13]} 47. Rc2 {[%emt 0:00:00]} Nc6 {[%emt 0:05:42]} 48. Rd2 {[%emt 0:00:00]} f5 {[%emt 0:00:43]} 49. Be2 {[%emt 0:00:00]} Ne5 {[%emt 0:01:54]} 50. Rc2 {[%emt 0:00:00]} Bc6 {[%emt 0:07:07]} 51. Rd2 {[%emt 0:00:00]} Ng6 {[%emt 0:00:27]} 52. Bc4 {[%emt 0:00:00]} f4+ {[%emt 0:03:38]} 53. gxf4+ {[%emt 0:00:00]} Nxf4 {[%emt 0:00:08]} 54. Kf2 {[%emt 0:00:01]} e5 {[%emt 0:01:05]} 55. Rd8 {[%emt 0:01:34]} Nh5 {[%emt 0:00:56]} 56. Bd5 {[%emt 0:01:26]} Nf6 {[%emt 0:00:42]} 1/2-1/2

[Event "FIDE WSTC Open 50 2025"]
[Site "Prague"]
[Date "2025.02.18"]
[Round "2.29"]
[White "Muir, Andrew J"]
[Black "Bischoff, Klaus"]
[Result "1/2-1/2"]
[Annotator "ChessBase"]
[ECO "A58"]
[WhiteElo "2166"]
[BlackElo "2432"]
[PlyCount "45"]
[EventDate "2025.02.17"]
[EventType "team-tourn"]
[EventCountry "CZE"]
[SourceTitle "playchess.com"]
[Source "ChessBase"]
[SourceQuality "1"]
[TimeControl "40/5400+30:1800+30"]

1. d4 {[%emt 0:00:09]} Nf6 {[%emt 0:00:15]} 2. c4 {[%emt 0:00:13]} c5 {[%emt 0:00:39]} 3. d5 {[%emt 0:00:16]} b5 {[%emt 0:00:12]} 4. cxb5 {[%emt 0:00:25]} a6 {[%emt 0:00:07]} 5. bxa6 {[%emt 0:00:23]} g6 {[%emt 0:00:21]} 6. Nc3 {[%emt 0:00:19]} Bg7 {[%emt 0:00:10]} 7. e4 {[%emt 0:00:40]} O-O {[%emt 0:00:16]} 8. Nf3 {[%emt 0:00:23]} Qa5 {[%emt 0:00:29]} 9. Bd2 {[%emt 0:01:14]} Bxa6 {[%emt 0:00:10]} 10. Be2 {[%emt 0:00:28]} d6 {[%emt 0:05:17]} 11. O-O {[%emt 0:00:31]} Qb4 {[%emt 0:03:29]} 12. Bxa6 {[%emt 0:14:17]} Nxa6 {[%emt 0:00:23]} 13. Qc2 {[%emt 0:02:57]} Rfb8 {[%emt 0:01:09]} 14. Rab1 {[%emt 0:02:17]} Qc4 {[%emt 0:04:36]} 15. a3 {[%emt 0:13:04]} Qb3 {[%emt 0:15:02]} 16. Qxb3 {[%emt 0:09:43]} Rxb3 {[%emt 0:00:32]} 17. e5 {[%emt 0:00:05]} dxe5 {[%emt 0:05:05]} 18. Nxe5 {[%emt 0:00:08]} Nc7 {[%emt 0:03:35]} 19. f4 {[%emt 0:10:45]} Ncxd5 {[%emt 0:02:29]} 20. Nxd5 {[%emt 0:06:07]} Nxd5 {[%emt 0:01:41]} 21. Rfc1 {[%emt 0:00:05]} Rc8 {[%emt 0:08:53]} 22. Rc2 {[%emt 0:04:09]} f6 {[%emt 0:03:47]} 23. Nc4 {[%emt 0:00:50]} 1/2-1/2

[Event "FIDE WSTC Open 50 2025"]
[Site "Prague"]
[Date "2025.02.18"]
[Round "2.30"]
[White "Seul, Georg"]
[Black "Farrell, Neil"]
[Result "0-1"]
[Annotator "ChessBase"]
[ECO "C02"]
[WhiteElo "2329"]
[BlackElo "2116"]
[PlyCount "71"]
[EventDate "2025.02.17"]
[EventType "team-tourn"]
[EventCountry "CZE"]
[SourceTitle "playchess.com"]
[Source "ChessBase"]
[SourceQuality "1"]
[TimeControl "40/5400+30:1800+30"]

1. e4 {[%emt 0:00:03]} e6 2. d4 {[%emt 0:00:07]} d5 {[%emt 0:00:22]} 3. e5 {[%emt 0:00:06]} c5 {[%emt 0:00:16]} 4. c3 {[%emt 0:00:08]} Nc6 {[%emt 0:00:17]} 5. Nf3 {[%emt 0:00:07]} Qb6 {[%emt 0:00:19]} 6. a3 {[%emt 0:00:12]} Nh6 {[%emt 0:00:41]} 7. Bd3 {[%emt 0:00:17]} cxd4 {[%emt 0:01:20]} 8. O-O {[%emt 0:00:12]} Bd7 {[%emt 0:03:45]} 9. b4 {[%emt 0:00:29]} Rc8 {[%emt 0:02:06]} 10. Ra2 {[%emt 0:02:25]} dxc3 {[%emt 0:12:31]} 11. Nxc3 {[%emt 0:01:14]} Nxb4 {[%emt 0:08:43]} 12. axb4 {[%emt 0:06:41]} Rxc3 {[%emt 0:00:33]} 13. Be3 {[%emt 0:00:54]} Qd8 {[%emt 0:25:53]} 14. Rxa7 {[%emt 0:07:05]} Bxb4 {[%emt 0:04:09]} 15. Rxb7 {[%emt 0:07:29]} Be7 {[%emt 0:05:06]} 16. Qd2 {[%emt 0:28:21]} Ra3 {[%emt 0:09:04]} 17. Rc1 {[%emt 0:08:50]} O-O {[%emt 0:02:21]} 18. Bxh6 {[%emt 0:09:06]} gxh6 {[%emt 0:00:41]} 19. Bb1 {[%emt 0:02:29]} f5 {[%emt 0:10:39]} 20. Rcc7 {[%emt 0:02:42]} Bc8 {[%emt 0:03:30]} 21. Rxe7 {[%emt 0:01:06]} Bxb7 {[%emt 0:00:06]} 22. Rxb7 {[%emt 0:00:15]} Qc8 {[%emt 0:03:11]} 23. Rb6 {[%emt 0:10:49]} Qc5 {[%emt 0:01:42]} 24. Qb2 {[%emt 0:07:21]} Rc8 {[%emt 0:01:07]} 25. h4 {[%emt 0:01:25]} Qc1+ {[%emt 0:02:31]} 26. Qxc1 {[%emt 0:00:16]} Rxc1+ {[%emt 0:00:03]} 27. Kh2 {[%emt 0:00:02]} Ra1 {[%emt 0:00:20]} 28. Rxe6 {[%emt 0:03:09]} Raxb1 {[%emt 0:00:23]} 29. Rxh6 {[%emt 0:00:24]} Rb2 {[%emt 0:01:20]} 30. Rd6 {[%emt 0:00:47]} Rcc2 {[%emt 0:01:05]} 31. Kg3 {[%emt 0:00:30]} Rxf2 {[%emt 0:00:22]} 32. Kf4 {[%emt 0:00:19]} Rxg2 {[%emt 0:00:17]} 33. Rxd5 {[%emt 0:00:48]} Rbf2 {[%emt 0:01:40]} 34. Rd3 {[%emt 0:00:26]} Rg4+ {[%emt 0:00:21]} 35. Kxf5 {[%emt 0:00:05]} Rxh4 {[%emt 0:00:23]} 36. Kg5 {[%emt 0:00:00]} 0-1

[Event "FIDE WSTC Open 50 2025"]
[Site "Prague"]
[Date "2025.02.18"]
[Round "2.31"]
[White "Robertson, Ian C."]
[Black "Wolf, Volker"]
[Result "0-1"]
[Annotator "ChessBase"]
[ECO "A46"]
[WhiteElo "2064"]
[BlackElo "2206"]
[PlyCount "96"]
[EventDate "2025.02.17"]
[EventType "team-tourn"]
[EventCountry "CZE"]
[SourceTitle "playchess.com"]
[Source "ChessBase"]
[SourceQuality "1"]
[TimeControl "40/5400+30:1800+30"]

1. d4 {[%emt 0:00:05]} Nf6 {[%emt 0:00:32]} 2. Nf3 {[%emt 0:00:25]} e6 {[%emt 0:00:34]} 3. e3 {[%emt 0:01:00]} b6 {[%emt 0:02:24]} 4. Bd3 {[%emt 0:02:02]} Bb7 {[%emt 0:00:35]} 5. O-O {[%emt 0:00:59]} c5 {[%emt 0:00:38]} 6. c4 {[%emt 0:04:12]} Be7 {[%emt 0:04:32]} 7. Nc3 {[%emt 0:02:32]} O-O {[%emt 0:07:33]} 8. d5 {[%emt 0:07:44]} exd5 {[%emt 0:02:17]} 9. cxd5 {[%emt 0:01:31]} d6 {[%emt 0:00:23]} 10. e4 {[%emt 0:05:39]} Nbd7 {[%emt 0:05:35]} 11. h3 {[%emt 0:07:57]} a6 {[%emt 0:01:14]} 12. a4 {[%emt 0:00:22]} Re8 {[%emt 0:00:58]} 13. Bf4 {[%emt 0:02:24]} Bf8 {[%emt 0:02:55]} 14. Re1 {[%emt 0:01:37]} Qc7 {[%emt 0:04:07]} 15. Bc4 {[%emt 0:05:30]} g6 {[%emt 0:05:11]} 16. Qd2 {[%emt 0:06:19]} Bg7 {[%emt 0:05:30]} 17. Re2 {[%emt 0:14:12]} Nh5 {[%emt 0:11:05]} 18. Bh2 {[%emt 0:03:50]} Ne5 {[%emt 0:03:09]} 19. Nxe5 {[%emt 0:07:35]} Bxe5 {[%emt 0:00:42]} 20. Rae1 {[%emt 0:08:13]} Qe7 {[%emt 0:07:40]} 21. f4 {[%emt 0:03:41]} Bd4+ {[%emt 0:00:23]} 22. Kh1 {[%emt 0:00:09]} Qh4 {[%emt 0:01:23]} 23. Rf1 {[%emt 0:06:04]} Ng3+ {[%emt 0:01:41]} 24. Bxg3 {[%emt 0:00:09]} Qxg3 {[%emt 0:00:03]} 25. Qe1 {[%emt 0:05:32]} Qxe1 {[%emt 0:00:18]} 26. Rfxe1 {[%emt 0:00:02]} f6 {[%emt 0:00:47]} 27. Kh2 {[%emt 0:01:28]} Kg7 {[%emt 0:00:22]} 28. Kg3 {[%emt 0:00:08]} Bc8 {[%emt 0:01:31]} 29. Nb1 {[%emt 0:02:07]} Bd7 {[%emt 0:00:51]} 30. b3 {[%emt 0:00:49]} b5 {[%emt 0:02:15]} 31. axb5 {[%emt 0:00:10]} axb5 {[%emt 0:00:01]} 32. Bd3 {[%emt 0:00:09]} g5 {[%emt 0:06:28]} 33. Rc1 {[%emt 0:01:38]} Ra1 {[%emt 0:00:36]} 34. fxg5 {[%emt 0:00:37]} fxg5 {[%emt 0:00:02]} 35. Kh2 {[%emt 0:00:35]} Rf8 {[%emt 0:01:32]} 36. Rce1 {[%emt 0:00:19]} Be5+ {[%emt 0:01:57]} 37. Kg1 {[%emt 0:00:07]} Bg3 {[%emt 0:01:06]} 38. Rd1 {[%emt 0:00:54]} Be5 {[%emt 0:01:02]} 39. Ree1 {[%emt 0:00:32]} Ra2 {[%emt 0:04:48]} 40. Re2 {[%emt 0:00:33]} Bd4+ {[%emt 0:00:55]} 41. Kh1 {[%emt 0:04:24]} Ra1 {[%emt 0:02:58]} 42. Ree1 {[%emt 0:06:52]} h5 {[%emt 0:14:55]} 43. Nd2 {[%emt 0:11:42]} Rxd1 {[%emt 0:02:09]} 44. Rxd1 {[%emt 0:00:01]} g4 {[%emt 0:00:20]} 45. Nf1 {[%emt 0:06:09]} gxh3 {[%emt 0:13:38]} 46. Ng3 {[%emt 0:02:45]} hxg2+ {[%emt 0:01:40]} 47. Kxg2 {[%emt 0:00:16]} Rf2+ {[%emt 0:00:56]} 48. Kh1 {[%emt 0:00:26]} Bg4 {[%emt 0:00:33]} 0-1

[Event "FIDE WSTC Open 50 2025"]
[Site "Prague"]
[Date "2025.02.18"]
[Round "2.32"]
[White "Polster, Wolfgang"]
[Black "Sanger, Mark"]
[Result "0-1"]
[Annotator "NA"]
[ECO "A20"]
[WhiteElo "2131"]
[BlackElo "2135"]
[PlyCount "58"]
[EventDate "2025.02.17"]
[EventType "team-tourn"]
[EventCountry "CZE"]
[SourceTitle "playchess.com"]
[Source "ChessBase"]
[SourceQuality "1"]
[TimeControl "40/5400+30:1800+30"]

1. c4 {[%emt 0:06:35]} e5 {[%emt 0:00:11]} 2. g3 {[%emt 0:00:29]} Nc6 {[%emt 0:00:15]} 3. Bg2 {[%emt 0:00:28]} f5 {[%emt 0:00:20]} 4. d3 {[%emt 0:01:31]} Nf6 {[%emt 0:00:18]} 5. Nc3 {[%emt 0:01:49]} Bc5 {[%emt 0:00:58]} 6. e3 {[%emt 0:01:16]} a6 {[%emt 0:04:54]} 7. Nge2 {[%emt 0:01:02]} Ba7 {[%emt 0:00:20]} 8. Rb1 {[%emt 0:02:31]} d6 {[%emt 0:02:17]} 9. b4 {[%emt 0:01:20]} O-O {[%emt 0:02:10]} 10. O-O {[%emt 0:01:09]} Qe8 {[%emt 0:00:43]} 11. a4 {[%emt 0:14:29]} f4 {[%emt 0:00:43]} 12. b5 {[%emt 0:09:33]} axb5 {[%emt 0:09:46]} 13. axb5 {[%emt 0:02:53]} Ne7 {[%emt 0:00:57]} 14. exf4 {[%emt 0:08:53]} Qh5 {[%emt 0:10:07]} 15. Ne4 {[%emt 0:20:08]} Bg4 {[%emt 0:14:25]} 16. Rb2 {[%emt 0:01:34]} Nf5 {[%emt 0:01:31]} 17. c5 {[%emt 0:06:53]} Nd4 {[%emt 0:06:07]} 18. f3 {[%emt 0:01:20]} Bxf3 {[%emt 0:08:14]} 19. Rxf3 {[%emt 0:03:48]} Nxf3+ {[%emt 0:00:37]} 20. Bxf3 {[%emt 0:00:09]} Qxf3 {[%emt 0:00:34]} 21. b6 {[%emt 0:00:42]} cxb6 {[%emt 0:04:46]} 22. cxb6 {[%emt 0:00:43]} Bb8 {[%emt 0:01:05]} 23. Qb3+ {[%emt 0:02:09]} d5 {[%emt 0:03:00]} 24. Ng5 {[%emt 0:02:52]} Qh5 {[%emt 0:02:16]} 25. fxe5 {[%emt 0:02:36]} Bxe5 {[%emt 0:01:00]} 26. d4 {[%emt 0:00:06]} Bd6 {[%emt 0:00:52]} 27. Kg2 {[%emt 0:01:55]} h6 {[%emt 0:01:59]} 28. Ne6 {[%emt 0:00:28]} Ra3 {[%emt 0:03:09]} 29. N2f4 {[%emt 0:01:27]} Rxb3 {[%emt 0:00:55]} 0-1